bitfinex-derivatives/quotes_SOLF0:USTF0_20240910
["timestamp","ask_amount","ask_price","bid_price","bid_amount"]
[1725975449157,3.73418289,133.67,133.58,1.3939]
[1725975449460,22.99,133.66,133.58,1.3939]
[1725975449659,19.2722,133.66,133.58,1.3939]
[1725975449965,11.8132,133.66,133.58,1.3939]
[1725975450151,3.7412,133.64,133.6,7.463]
[1725975450350,79.68768148,133.7,133.6,7.463]
[1725975450556,8.072,133.67,133.6,7.463]
[1725975450760,4.3537,133.67,133.62,7.463]
[1725975451162,76.58238148,133.7,133.62,7.463]
[1725975451361,19.2718,133.68,133.62,7.463]
[1725975451570,22.99,133.69,133.62,7.463]
[1725975451757,15.531,133.69,133.58,8.8569]
[1725975451959,3.7405,133.67,133.62,7.463]
[1725975452158,4.3475,133.69,133.62,7.463]
[1725975452371,61.66438148,133.7,133.62,7.463]
[1725975452671,22.99,133.67,133.62,7.463]
[1725975452858,61.66438148,133.7,133.58,1.3939]
[1725975453061,8.066,133.67,133.58,1.3939]
[1725975453263,3.79435027,133.67,133.55,1.3091]
[1725975453456,15.531,133.65,133.55,1.3091]
[1725975453756,3.7413,133.64,133.55,1.3091]
[1725975453956,4.3543,133.65,133.55,8.7721]
[1725975454558,58.55368148,133.7,133.55,8.7721]
[1725975454759,58.55368148,133.7,133.59,7.463]
[1725975454760,3.7414,133.64,133.59,7.463]
[1725975455064,19.2724,133.66,133.59,7.463]
[1725975455260,11.8134,133.66,133.59,7.463]
[1725975455566,55.44308148,133.7,133.59,7.463]
[1725975455761,15.531,133.66,133.55,8.7721]
[1725975456062,3.7414,133.64,133.59,7.463]
[1725975456263,8.072,133.66,133.59,7.463]
[1725975456475,52.33248149,133.7,133.57,7.463]
[1725975456666,15.531,133.67,133.57,7.463]
[1725975456865,8.072,133.67,133.57,7.463]
[1725975457069,8.072,133.67,133.59,3.7423]
[1725975457274,52.33248149,133.7,133.59,11.2053]
[1725975457567,3.7411,133.65,133.6,3.7422]
[1725975457783,52.33248149,133.7,133.57,7.463]
[1725975457784,19.2721,133.68,133.57,7.463]
[1725975458067,75.32248149,133.7,133.58,22.99]
[1725975458456,3.7398,133.69,133.59,7.463]
[1725975458665,22.99,133.72,133.6,22.99]
[1725975458864,22.99,133.72,133.6,25.6631]
[1725975459065,3.7395,133.7,133.64,3.7411]
[1725975459363,3.7395,133.7,133.61,1.3041]
[1725975459570,3.7393,133.71,133.65,3.7407]
[1725975459770,3.7393,133.71,133.61,1.3041]
[1725975459974,22.99,133.72,133.61,1.3041]
[1725975460666,3.7397,133.7,133.64,3.7411]
[1725975460867,3.7397,133.7,133.61,1.3041]
[1725975461170,3.7397,133.7,133.65,3.7407]
[1725975461666,22.99,133.72,133.65,3.7407]
[1725975462260,22.99,133.72,133.66,3.7406]
[1725975462466,22.99,133.72,133.61,1.3041]
[1725975462668,22.99,133.72,133.62,22.99]
[1725975462871,26.7292,133.72,133.62,22.99]
[1725975463067,3.7392,133.72,133.62,22.99]
[1725975463763,3.7392,133.71,133.66,3.7403]
[1725975463968,232.4735,133.8,133.61,1.3041]
[1725975463969,232.4735,133.8,133.64,22.99]
[1725975464271,3.739,133.72,133.67,3.7402]
[1725975464574,3.739,133.72,133.64,22.99]
[1725975464760,3.7394,133.71,133.66,3.7404]
[1725975465172,3.7394,133.71,133.61,24.2941]
[1725975465368,3.739,133.72,133.61,24.2941]
[1725975465567,22.99,133.73,133.67,3.7401]
[1725975465965,3.7391,133.72,133.67,3.7401]
[1725975466561,3.7393,133.71,133.67,3.7401]
[1725975466971,14.7293,133.73,133.67,3.7401]
[1725975467677,3.7393,133.71,133.67,3.7401]
[1725975467978,3.65898376,133.75,133.61,24.2941]
[1725975467979,22.99,133.75,133.63,22.99]
[1725975468179,3.7388,133.73,133.64,14.36]
[1725975468383,14.36,133.74,133.64,14.36]
[1725975468678,14.36,133.76,133.66,14.36]
[1725975468882,14.36,133.76,133.7,3.7393]
[1725975469073,14.36,133.76,133.67,2.6962]
[1725975469074,14.36,133.76,133.67,4.087]
[1725975469469,18.098,133.76,133.67,4.087]
[1725975469672,18.098,133.76,133.67,10.58933493]
[1725975470067,3.738,133.76,133.72,3.7388]
[1725975473179,14.36,133.78,133.68,18.14460877]
[1725975473477,14.36,133.78,133.67,4.087]
[1725975473478,14.36,133.76,133.67,4.087]
[1725975475275,3.7385,133.74,133.7,3.7394]
[1725975475475,14.36,133.76,133.7,3.7394]
[1725975475785,3.7391,133.72,133.68,3.74]
[1725975476277,14.36,133.74,133.63,1.3777]
[1725975476278,14.36,133.7,133.63,1.3777]
[1725975476678,14.36,133.7,133.65,6.50372212]
[1725975476880,3.74,133.69,133.64,3.7411]
[1725975477283,3.7405,133.67,133.62,10.24673821]
[1725975477486,14.36,133.7,133.61,2.598]
[1725975477891,3.7401,133.68,133.63,3.7414]
[1725975478185,14.36,133.68,133.61,2.598]
[1725975478386,6.895,133.68,133.55,7.463]
[1725975478590,14.36,133.65,133.58,9.26415067]
[1725975478776,14.36,133.65,133.58,2.7578]
[1725975479180,6.901,133.65,133.58,2.7578]
[1725975479383,3.18927167,133.73,133.58,2.7578]
[1725975479590,14.36,133.64,133.58,2.7578]
[1725975479786,6.901,133.64,133.58,2.7578]
[1725975480179,3.69845071,133.67,133.55,11.28382179]
[1725975480479,14.36,133.64,133.56,6.50731537]
[1725975480676,10.6427,133.64,133.57,6.50731537]
[1725975480880,3.76169448,133.66,133.56,3.7433]
[1725975481078,6.901,133.64,133.57,6.50772039]
[1725975481387,3.178,133.62,133.54,11.4453]
[1725975481590,14.36,133.67,133.54,3.9823]
[1725975481591,2.614,133.67,133.54,3.9823]
[1725975481886,14.36,133.65,133.55,6.50827893]
[1725975482190,14.36,133.66,133.56,28.01726022]
[1725975482383,14.36,133.66,133.57,13.65683848]
[1725975482590,14.36,133.66,133.56,14.36]
[1725975482591,10.6419,133.66,133.58,6.50827893]
[1725975482786,3.78154347,133.67,133.57,7.14870611]
[1725975482982,14.36,133.66,133.56,14.36]
[1725975483177,6.901,133.66,133.57,13.65570026]
[1725975483383,6.901,133.66,133.54,3.9823]
[1725975483384,18.1355529,133.68,133.58,28.01570026]
[1725975483681,6.895,133.68,133.59,6.50723278]
[1725975483886,6.895,133.68,133.58,14.36]
[1725975484087,3.7404,133.67,133.6,3.742]
[1725975484285,87.15755218,133.7,133.58,14.36]
[1725975484487,14.36,133.69,133.59,13.65425577]
[1725975484687,3.7402,133.68,133.62,3.7415]
[1725975484885,14.36,133.69,133.58,14.36]
[1725975485082,14.36,133.69,133.59,6.50600278]
[1725975485284,18.0998,133.69,133.62,3.7417]
[1725975485484,18.0998,133.69,133.49,9.35779357]
[1725975485485,14.36,133.69,133.49,9.35779357]
[1725975485681,14.36,133.68,133.57,14.36]
[1725975485987,14.36,133.68,133.58,13.65374363]
[1725975486185,90.83016534,133.7,133.57,14.36]
[1725975486186,14.36,133.69,133.59,28.01374363]
[1725975486380,14.36,133.69,133.6,16.30534363]
[1725975486583,14.36,133.69,133.64,3.7411]
[1725975487387,3.7392,133.71,133.65,3.7408]
[1725975487592,14.36,133.74,133.63,14.36]
[1725975487779,14.36,133.74,133.64,6.50494765]
[1725975487984,18.0986,133.74,133.63,14.36]
[1725975488185,14.36,133.76,133.64,13.65040828]
[1725975488492,18.0973,133.78,133.72,3.7389]
[1725975488687,14.36,133.78,133.68,3.965]
[1725975489282,3.7375,133.77,133.68,3.965]
[1725975489588,14.36,133.78,133.69,7.14350785]
[1725975489791,18.0973,133.78,133.72,3.7387]
[1725975490386,3.7373,133.78,133.72,3.7387]
[1725975490581,3.7376,133.77,133.72,3.7387]
[1725975490788,3.7376,133.77,133.71,3.7391]
[1725975491093,26.67264068,133.8,133.68,2.6516]
[1725975491094,22.99,133.75,133.68,2.6516]
[1725975491390,22.99,133.76,133.68,5.0543]
[1725975491892,3.79665777,133.75,133.65,1.3344]
[1725975492087,22.99,133.76,133.66,6.50389106]
[1725975492290,22.99,133.76,133.67,6.50389106]
[1725975492591,3.7388,133.73,133.65,1.3344]
[1725975492786,3.7388,133.73,133.66,13.64839224]
[1725975493087,22.99,133.76,133.67,6.50379804]
[1725975493293,3.739,133.72,133.65,1.3344]
[1725975493590,3.739,133.72,133.66,6.50396297]
[1725975493785,3.739,133.72,133.65,1.3344]
[1725975493987,3.7394,133.71,133.63,10.40607687]
[1725975494193,22.99,133.73,133.62,1.3134]
[1725975494389,22.99,133.71,133.63,6.50500585]
[1725975494589,22.99,133.71,133.62,5.0549]
[1725975494792,22.99,133.69,133.51,9.35750241]
[1725975495087,15.525,133.69,133.6,3.7421]
[1725975495295,3.7409,133.66,133.61,6.50594176]
[1725975495489,3.7409,133.66,133.58,10.40950682]
[1725975495689,3.7409,133.66,133.59,13.44810583]
[1725975496006,15.525,133.69,133.6,6.50613897]
[1725975496292,15.525,133.69,133.61,6.50613897]
[1725975496499,22.99,133.71,133.62,6.50613897]
[1725975496693,22.99,133.71,133.58,24.3418]
[1725975496694,22.99,133.71,133.64,3.7409]
[1725975497088,3.7398,133.69,133.64,3.7409]
[1725975497286,22.99,133.71,133.65,3.7407]
[1725975497695,22.99,133.71,133.6,6.94136304]
[1725975497893,22.99,133.71,133.61,23.8548449]
[1725975498096,22.99,133.71,133.61,13.44654837]
[1725975498393,3.7401,133.68,133.63,3.7412]
[1725975498787,3.7404,133.67,133.62,3.7415]
[1725975498988,22.99,133.71,133.62,3.7415]
[1725975499290,22.99,133.69,133.61,13.44654837]
[1725975499494,22.99,133.69,133.61,3.742]
[1725975499696,22.99,133.69,133.59,1.3696]
[1725975499892,22.99,133.69,133.62,6.50607872]
[1725975500390,3.7405,133.67,133.62,6.50607872]
[1725975500595,3.7405,133.67,133.59,1.3696]
[1725975500596,22.99,133.71,133.64,3.7411]
[1725975500990,3.7399,133.69,133.64,3.7411]
[1725975501388,3.7396,133.7,133.6,22.99]
[1725975501594,22.99,133.71,133.61,13.39092353]
[1725975501793,22.99,133.71,133.62,6.50541571]
[1725975502091,22.99,133.71,133.63,10.24671571]
[1725975502297,22.99,133.71,133.63,3.7413]
[1725975502594,22.99,133.71,133.64,6.5054471]
[1725975502798,22.99,133.71,133.61,10.40871537]
[1725975502799,22.99,133.71,133.65,6.50495838]
[1725975502999,3.7399,133.69,133.65,3.7408]
[1725975503304,3.7399,133.69,133.62,1.3589]
[1725975503599,3.7399,133.69,133.63,6.50533941]
[1725975503801,3.7399,133.69,133.65,3.7409]
[1725975504001,3.7396,133.7,133.64,6.50533941]
[1725975504298,22.99,133.71,133.65,6.50495242]
[1725975504601,22.99,133.71,133.63,6.7328975]
[1725975504906,22.99,133.71,133.64,6.50511741]
[1725975505100,22.99,133.71,133.62,1.3589]
[1725975505101,3.7401,133.68,133.62,1.3589]
[1725975505397,3.7401,133.68,133.63,3.7413]
[1725975505598,3.7404,133.67,133.63,10.24678042]
[1725975505802,19.26540001,133.71,133.63,3.7413]
[1725975506001,19.26540001,133.71,133.62,1.3589]
[1725975506204,19.26540001,133.71,133.63,6.50584121]
[1725975506391,3.7405,133.67,133.62,5.1004]
[1725975506598,3.7405,133.67,133.62,1.3589]
[1725975506897,3.7405,133.67,133.63,6.50584121]
[1725975507097,3.7405,133.67,133.63,3.7413]
[1725975507292,19.26540001,133.71,133.62,1.3589]
[1725975507504,19.26540001,133.71,133.63,6.50558251]
[1725975507805,3.7393,133.71,133.64,6.50558251]
[1725975508099,3.7393,133.71,133.66,3.7404]
[1725975508302,3.7396,133.7,133.66,3.7404]
[1725975508709,26.74514507,133.73,133.66,3.7404]
[1725975509001,3.7393,133.71,133.67,3.7403]
[1725975509304,22.99,133.73,133.63,36.12975863]
[1725975509499,22.99,133.73,133.64,14.54796747]
[1725975509699,22.99,133.73,133.65,6.5044739]
[1725975509901,22.99,133.73,133.63,22.99]
[1725975510206,22.99,133.71,133.64,6.45027185]
[1725975510394,15.5,133.71,133.62,1.3589]
[1725975510602,3.7405,133.67,133.63,6.45122983]
[1725975510906,3.7405,133.67,133.62,5.1004]
[1725975511106,3.7405,133.67,133.63,6.45119738]
[1725975511405,3.7405,133.67,133.62,1.3589]
[1725975511603,3.7407,133.66,133.63,6.45122397]
[1725975511804,22.99,133.69,133.63,6.45122397]
[1725975511805,3.66112857,133.68,133.63,6.45122397]
[1725975512108,3.741,133.65,133.59,1.3696]
[1725975512300,3.741,133.65,133.6,10.1936929]
[1725975512703,3.741,133.65,133.61,6.4515929]
[1725975512911,3.741,133.65,133.62,6.4515929]
[1725975513212,3.741,133.65,133.61,3.7419]
[1725975513405,3.741,133.65,133.62,6.45171653]
[1725975513614,3.741,133.65,133.61,3.7419]
[1725975513909,10.6207,133.67,133.62,6.45171971]
[1725975514101,10.6207,133.67,133.59,1.3696]
[1725975514302,10.6207,133.67,133.6,6.45224212]
[1725975514497,3.7405,133.67,133.61,6.45224212]
[1725975514704,3.7405,133.67,133.59,1.3696]
[1725975514906,18.06618926,133.68,133.6,6.45224217]
[1725975515218,14.37,133.66,133.61,6.45224217]
[1725975515402,14.37,133.66,133.62,3.7415]
[1725975516110,3.7405,133.67,133.59,2.7162]
[1725975516505,3.7405,133.67,133.63,3.7413]
[1725975516906,14.37,133.68,133.59,2.7162]
[1725975516907,18.1101,133.68,133.59,2.7162]
[1725975517112,18.1101,133.68,133.6,27.63971758]
[1725975517315,18.1101,133.68,133.61,13.26971758]
[1725975517506,3.7404,133.67,133.62,6.4518735]
[1725975517706,3.7404,133.67,133.6,14.37]
[1725975517910,14.37,133.68,133.61,13.2695864]
[1725975518102,14.37,133.68,133.62,6.45181815]
[1725975518103,18.1102,133.68,133.62,6.45181815]
[1725975518305,18.1102,133.68,133.63,10.19301815]
[1725975518506,18.1102,133.68,133.63,3.7412]
[1725975518804,18.1102,133.68,133.6,14.37]
[1725975518805,14.37,133.68,133.62,3.7415]
[1725975519009,14.37,133.68,133.63,6.45174177]
[1725975519211,14.37,133.68,133.6,14.37]
[1725975519420,3.7405,133.67,133.63,3.7412]
[1725975519909,14.37,133.7,133.6,14.37]
[1725975520104,14.37,133.7,133.61,6.81733426]
[1725975520300,3.7408,133.66,133.62,6.45146027]
[1725975520504,18.11719224,133.68,133.61,3.7419]
[1725975520701,18.11719224,133.68,133.62,6.45230299]
[1725975520905,3.7404,133.67,133.63,3.7414]
[1725975522709,3.7406,133.66,133.62,3.7416]
[1725975523002,18.11719224,133.68,133.63,6.45177478]
[1725975523208,18.11719224,133.68,133.59,17.0862]
[1725975523402,14.37,133.66,133.6,6.45203887]
[1725975523616,3.7419,133.62,133.58,1.3035]
[1725975523808,14.37,133.67,133.58,1.3035]
[1725975524006,14.37,133.64,133.59,6.45322331]
[1725975524216,14.37,133.64,133.6,6.45322331]
[1725975524217,10.6245,133.64,133.6,6.45322331]
[1725975524409,7.4785,133.71,133.58,1.3035]
[1725975524605,14.37,133.64,133.59,6.45323693]
[1725975524806,10.56965876,133.64,133.58,1.3035]
[1725975525011,3.7415,133.63,133.58,5.0463]
[1725975525312,6.81265876,133.71,133.59,6.45310462]
[1725975525613,6.88,133.64,133.56,6.47416796]
[1725975525816,3.67056635,133.63,133.57,6.45340327]
[1725975526017,14.29546635,133.64,133.58,6.45340327]
[1725975526315,10.58822911,133.64,133.56,6.57905181]
[1725975526511,10.58822911,133.64,133.57,6.45366169]
[1725975526708,6.88,133.62,133.55,1.3529]
[1725975526919,14.37,133.6,133.56,6.45369339]
[1725975527118,10.6255,133.6,133.54,5.0909]
[1725975527420,14.37,133.61,133.55,6.45426189]
[1725975527617,3.7423,133.6,133.56,6.45426189]
[1725975527807,3.1353,133.61,133.55,3.7436]
[1725975528208,6.8775,133.61,133.56,6.45413666]
[1725975528411,6.8775,133.61,133.54,1.347]
[1725975528611,6.883,133.63,133.55,6.45397514]
[1725975528817,17.42258607,133.67,133.56,6.45397514]
[1725975529015,14.37,133.62,133.54,1.347]
[1725975529218,14.37,133.62,133.55,6.45440796]
[1725975529520,10.6255,133.62,133.56,6.45439347]
[1725975529724,10.6255,133.62,133.54,1.347]
[1725975530019,17.42258607,133.67,133.55,10.19776398]
[1725975530217,14.37,133.62,133.56,6.45426398]
[1725975530420,10.6252,133.62,133.54,1.347]
[1725975530612,10.6252,133.62,133.55,6.45412586]
[1725975530811,14.37,133.6,133.53,1.2788]
[1725975531024,10.66520491,133.6,133.54,6.45457005]
[1725975531211,3.78220491,133.6,133.53,1.2788]
[1725975531412,13.763,133.67,133.54,3.7439]
[1725975531616,14.37,133.6,133.53,1.2788]
[1725975531817,3.82152486,133.6,133.54,6.45502655]
[1725975532122,3.82152486,133.6,133.51,1.4134]
[1725975532123,13.763,133.67,133.51,1.4134]
[1725975532316,14.37,133.59,133.52,6.45510861]
[1725975532514,10.53517013,133.59,133.53,10.19910861]
[1725975532724,10.53517013,133.59,133.53,3.744]
[1725975532918,9.32117013,133.67,133.53,3.744]
[1725975533124,14.37,133.59,133.53,3.744]
[1725975533324,10.71304164,133.59,133.53,3.744]
[1725975533626,3.22604164,133.59,133.53,3.744]
[1725975533816,9.32117013,133.67,133.53,3.744]
[1725975534023,14.37,133.59,133.53,3.744]
[1725975534222,10.56175724,133.59,133.51,1.4134]
[1725975534422,3.82442464,133.6,133.52,6.45497412]
[1725975534627,14.37,133.61,133.51,15.7834]
[1725975534819,14.37,133.63,133.56,3.7434]
[1725975535419,14.37,133.63,133.55,3.7436]
[1725975535821,13.1130162,133.67,133.51,1.4134]
[1725975535822,14.37,133.61,133.51,1.4134]
[1725975536134,10.66510568,133.61,133.52,12.63433831]
[1725975536320,3.17510568,133.61,133.53,6.45484359]
[1725975536522,14.37,133.59,133.54,6.45484359]
[1725975536722,14.37,133.59,133.55,6.45484359]
[1725975536925,18.14462062,133.59,133.56,6.45484359]
[1725975537124,3.77462062,133.59,133.53,3.744]
[1725975537427,3.16762062,133.59,133.53,3.744]
[1725975537730,3.16762062,133.59,133.54,3.7439]
[1725975537928,6.8737139,133.59,133.51,1.4134]
[1725975538118,3.16762062,133.59,133.51,1.4134]
[1725975538319,3.16762062,133.59,133.54,3.7438]
[1725975538522,12.51545342,133.67,133.51,1.4134]
[1725975538723,14.37,133.58,133.51,5.158]
[1725975538918,10.5607113,133.58,133.51,1.4134]
[1725975539325,14.37,133.53,133.41,4.0609]
[1725975539532,6.883,133.53,133.43,14.37]
[1725975539722,14.37,133.55,133.49,3.7452]
[1725975540032,14.37,133.6,133.49,14.37]
[1725975540325,10.70940785,133.6,133.5,17.44828668]
[1725975540523,7.06005221,133.6,133.51,14.34344702]
[1725975540723,14.37,133.67,133.51,3.7447]
[1725975540927,6.883,133.57,133.5,3.9378]
[1725975541223,14.37,133.59,133.45,3.7463]
[1725975541429,6.883,133.59,133.42,22.94855169]
[1725975541633,14.37,133.55,133.44,14.37]
[1725975541931,3.11490826,133.59,133.45,14.34804465]
[1725975542119,22.43,133.7,133.46,14.34753372]
[1725975542323,6.883,133.55,133.44,14.37]
[1725975542523,13.76300001,133.6,133.46,3.746]
[1725975542728,6.883,133.55,133.47,1.3421]
[1725975543031,3.15218258,133.55,133.47,1.3421]
[1725975543225,22.43,133.69,133.47,1.3421]
[1725975543528,14.37,133.52,133.47,1.3421]
[1725975544630,6.88,133.52,133.47,1.3421]
[1725975545628,17.55665222,133.54,133.42,1.3351]
[1725975545931,14.37,133.5,133.43,14.06028987]
[1725975546123,14.37,133.5,133.42,2.6168]
[1725975546323,14.37,133.52,133.42,2.6168]
[1725975546519,14.37,133.52,133.43,6.60910779]
[1725975546726,14.37,133.52,133.42,2.6168]
[1725975546727,6.88,133.52,133.42,2.6168]
[1725975546923,10.60536013,133.52,133.42,2.6168]
[1725975547130,14.37,133.49,133.44,11.29463987]
[1725975547330,14.37,133.49,133.43,7.05914992]
[1725975547530,14.37,133.49,133.44,7.05914992]
[1725975547727,14.37,133.51,133.45,7.05914992]
[1725975548029,14.37,133.53,133.46,7.05914992]
[1725975548232,14.37,133.55,133.47,7.05914992]
[1725975548529,14.37,133.6,133.48,8.42044992]
[1725975548826,14.37,133.54,133.49,7.05914992]
[1725975549027,14.37,133.6,133.5,7.05914992]
[1725975549028,14.37,133.52,133.5,7.05914992]
[1725975549230,6.88,133.52,133.42,35.69036486]
[1725975549425,14.37,133.54,133.44,14.37]
[1725975549730,14.37,133.54,133.45,7.45088993]
[1725975550035,14.37,133.56,133.49,3.7452]
[1725975550233,14.37,133.56,133.5,2.685]
[1725975551322,14.37,133.55,133.5,2.685]
[1725975551628,14.37,133.53,133.45,3.7462]
[1725975551820,14.37,133.6,133.39,11.9196489]
[1725975552023,14.37,133.51,133.43,1.2959]
[1725975552431,14.37,133.53,133.43,15.6659]
[1725975552625,14.37,133.55,133.44,7.44993354]
[1725975552833,14.37,133.55,133.45,24.47433354]
[1725975553031,14.37,133.55,133.46,7.44993354]
[1725975553231,14.37,133.55,133.45,17.0244]
[1725975553537,14.37,133.55,133.45,2.6544]
[1725975554140,3.77847403,133.58,133.46,7.44902975]
[1725975554432,14.37,133.57,133.46,7.44902975]
[1725975554632,3.65415819,133.66,133.47,14.37]
[1725975554836,14.37,133.59,133.47,14.37]
[1725975555032,14.37,133.59,133.47,21.81854992]
[1725975555231,14.37,133.59,133.47,14.37]
[1725975555835,14.37,133.64,133.54,14.37]
[1725975556040,14.37,133.64,133.55,3.9633]
[1725975556232,14.37,133.66,133.56,14.37]
[1725975556537,14.37,133.66,133.59,3.7424]
[1725975556742,14.37,133.66,133.56,14.37]
[1725975557738,14.37,133.62,133.55,3.9633]
[1725975558239,23.02,133.61,133.55,3.9633]
[1725975559229,23.02,133.64,133.55,3.9633]
[1725975559432,23.02,133.66,133.55,3.9633]
[1725975559841,23.02,133.68,133.56,23.02]
[1725975560734,15.53,133.68,133.56,23.02]
[1725975561934,23.02,133.66,133.55,3.9633]
[1725975562141,15.53,133.66,133.55,3.9633]
[1725975562940,23.02,133.69,133.58,23.02]
[1725975563336,23.02,133.72,133.6,23.02]
[1725975563535,23.02,133.72,133.61,4.0689]
[1725975564842,23.02,133.74,133.63,23.02]
[1725975566050,23.02,133.72,133.61,4.0689]
[1725975566539,23.02,133.72,133.64,3.741]
[1725975566731,23.02,133.72,133.61,4.0689]
[1725975567545,23.02,133.67,133.55,27.1102]
[1725975567747,23.02,133.67,133.56,7.15323489]
[1725975567948,23.02,133.67,133.57,30.17323489]
[1725975568246,23.02,133.67,133.62,3.7417]
[1725975568438,23.02,133.74,133.58,7.15323489]
[1725975568439,23.02,133.69,133.58,7.15323489]
[1725975568839,23.02,133.69,133.57,23.02]
[1725975569047,23.02,133.69,133.58,7.15266173]
[1725975569248,23.02,133.69,133.61,3.742]
[1725975569549,23.02,133.69,133.57,23.02]
[1725975569733,23.02,133.69,133.6,3.7421]
[1725975569940,23.02,133.69,133.57,23.02]
[1725975569941,23.02,133.67,133.55,27.1102]
[1725975570133,23.02,133.67,133.56,7.15337008]
[1725975570344,23.02,133.67,133.61,3.742]
[1725975570734,23.02,133.67,133.57,23.02]
[1725975571337,23.02,133.65,133.57,3.7429]
[1725975571537,23.02,133.65,133.55,4.0902]
[1725975571738,23.02,133.65,133.55,11.24399835]
[1725975571939,23.02,133.65,133.57,3.743]
[1725975572138,23.02,133.65,133.55,4.0902]
[1725975572343,23.02,133.63,133.55,7.8338]
[1725975573047,23.02,133.63,133.55,4.0902]
[1725975573547,15.529,133.63,133.55,4.0902]
[1725975573843,15.529,133.63,133.56,3.7432]
[1725975574040,15.529,133.63,133.55,4.0902]
[1725975574445,8.039,133.63,133.55,4.0902]
[1725975574849,8.039,133.63,133.56,3.7433]
[1725975575344,8.039,133.63,133.55,7.8337]
[1725975575544,8.039,133.63,133.55,2.7861]
[1725975575949,23.02,133.61,133.53,3.744]
[1725975576356,23.02,133.61,133.55,3.7436]
[1725975576551,15.53,133.61,133.55,3.7436]
[1725975576749,15.53,133.63,133.52,1.3337]
[1725975576954,7.489,133.66,133.56,3.7433]
[1725975577145,23.02,133.64,133.56,3.7433]
[1725975578147,23.02,133.64,133.55,3.7435]
[1725975578347,23.02,133.64,133.52,1.3337]
[1725975578653,23.02,133.64,133.53,7.15503637]
[1725975578859,23.02,133.64,133.56,3.7433]
[1725975579154,23.02,133.64,133.54,1.4131]
[1725975579354,23.02,133.64,133.56,3.7433]
[1725975579553,23.02,133.64,133.54,1.4131]
[1725975580052,23.019,133.64,133.54,1.4131]
[1725975580249,23.02,133.62,133.54,1.4131]
[1725975580445,23.02,133.62,133.55,3.7434]
[1725975580655,23.02,133.62,133.54,1.4131]
[1725975581247,23.02,133.62,133.56,3.7433]
[1725975581440,23.02,133.62,133.54,1.4131]
[1725975581645,23.02,133.62,133.55,3.7435]
[1725975581843,23.02,133.62,133.54,1.4131]
[1725975582141,23.02,133.62,133.54,3.7439]
[1725975582550,23.02,133.62,133.52,1.3337]
[1725975582751,23.019,133.62,133.55,3.7435]
[1725975582962,15.53,133.62,133.52,1.3337]
[1725975583459,15.53,133.62,133.55,3.7435]
[1725975583645,8.04,133.62,133.55,3.7435]
[1725975583955,8.04,133.62,133.52,1.3337]
[1725975583956,7.489,133.61,133.56,3.7433]
[1725975584156,0.55,133.62,133.52,1.3337]
[1725975584348,23.02,133.64,133.52,1.3337]
[1725975584550,23.02,133.64,133.57,3.7429]
[1725975584748,23.02,133.67,133.49,1.387]
[1725975584749,23.02,133.59,133.49,1.387]
[1725975584947,23.02,133.57,133.5,7.15551487]
[1725975585257,23.02,133.57,133.49,1.387]
[1725975585645,23.02,133.57,133.51,3.7448]
[1725975586953,23.02,133.55,133.48,1.3455]